bitfinex-derivatives/quotes_BTCF0:USTF0_20250504
["timestamp","ask_amount","ask_price","bid_price","bid_amount"]
[1746358241243,0.15740468,95521.0,95520.0,0.3415697]
[1746358241638,0.15740468,95521.0,95520.0,0.3715697]
[1746358241837,0.08010468,95521.0,95520.0,0.4415697]
[1746358242037,0.08010468,95521.0,95520.0,0.4315697]
[1746358242245,0.08010468,95521.0,95520.0,0.4697797]
[1746358242944,0.07505784,95521.0,95520.0,0.9852677]
[1746358243136,0.07505784,95521.0,95520.0,1.1032677]
[1746358243632,0.07505784,95521.0,95520.0,2.6032677]
[1746358243947,0.0673,95532.0,95531.0,0.2093456]
[1746358244140,0.0673,95532.0,95531.0,0.2830656]
[1746358244936,0.0673,95532.0,95531.0,0.4132656]
[1746358245746,0.0673,95532.0,95531.0,0.4232656]
[1746358246146,0.0683,95532.0,95531.0,0.4232656]
[1746358246745,0.0693,95532.0,95531.0,0.4232656]
[1746358248547,0.0693,95532.0,95531.0,0.4132656]
[1746358249540,0.0693,95532.0,95531.0,0.4532656]
[1746358254751,0.0693,95532.0,95531.0,0.4632656]
[1746358255046,0.0693,95532.0,95531.0,0.4532656]
[1746358258353,0.0693,95532.0,95531.0,0.3910656]
[1746358264050,0.0693,95532.0,95531.0,0.3510656]
[1746358266859,0.2786434,95532.0,95531.0,0.3510656]
[1746358267060,0.4786434,95532.0,95531.0,0.2730656]
[1746358267259,0.4786434,95532.0,95531.0,0.06372]
[1746358267453,0.4786434,95532.0,95531.0,0.2730656]
[1746358267957,0.20935,95529.0,95528.0,0.3608]
[1746358268163,0.60935,95529.0,95528.0,0.5701522]
[1746358268655,0.60935,95529.0,95528.0,0.2093522]
[1746358269260,0.67675,95529.0,95528.0,0.2093522]
[1746358269655,0.67775,95529.0,95528.0,0.2093522]
[1746358274569,0.2093675,95522.0,95520.0,0.1159822]
[1746358274761,0.3408675,95521.0,95520.0,0.4853519]
[1746358274960,0.5689675,95521.0,95520.0,0.4853519]
[1746358275266,0.5689675,95521.0,95520.0,0.3253519]
[1746358275466,0.58208253,95521.0,95520.0,0.3253519]
[1746358275666,0.58208253,95521.0,95520.0,0.3263519]
[1746358276166,0.58208253,95521.0,95520.0,0.3273519]
[1746358276567,0.58208253,95521.0,95520.0,0.3263519]
[1746358276763,0.5689675,95521.0,95520.0,0.3273519]
[1746358277361,0.5689675,95521.0,95520.0,0.3263519]
[1746358277659,0.5689675,95521.0,95520.0,0.3273519]
[1746358277969,0.5689675,95521.0,95520.0,0.3796919]
[1746358278159,0.58246206,95521.0,95520.0,0.3796919]
[1746358278659,0.5789675,95521.0,95520.0,0.3796919]
[1746358278962,0.5689675,95521.0,95520.0,0.3796919]
[1746358280670,0.58244872,95521.0,95520.0,0.3796919]
[1746358281669,0.5689675,95521.0,95520.0,0.3796919]
[1746358282964,0.5689675,95521.0,95520.0,0.3160519]
[1746358292279,0.5689675,95521.0,95520.0,0.2637097]
[1746358294984,0.5889675,95521.0,95520.0,0.2637097]
[1746358295184,0.5689675,95521.0,95520.0,0.2637097]
[1746358300486,0.5689675,95521.0,95520.0,0.3327097]
[1746358304592,0.5789675,95521.0,95520.0,0.3327097]
[1746358304990,0.5789675,95521.0,95520.0,0.12334]
[1746358305191,0.5789675,95521.0,95520.0,0.05434]
[1746358305392,0.5689675,95521.0,95520.0,0.05434]
[1746358306492,0.5689675,95521.0,95520.0,0.2637097]
[1746358307595,0.5689675,95521.0,95520.0,0.05434]
[1746358315896,0.5789675,95521.0,95520.0,0.05434]
[1746358316905,0.5689675,95521.0,95520.0,0.2637097]
[1746358317100,0.5036675,95521.0,95520.0,0.18794]
[1746358317707,0.5036675,95521.0,95520.0,0.25554]
[1746358321612,0.5036675,95521.0,95520.0,0.4649097]
[1746358322011,0.4936675,95521.0,95520.0,0.4649097]
[1746358326512,0.4936675,95521.0,95520.0,0.05434]
[1746358331117,0.4936675,95521.0,95520.0,0.2637097]
[1746358331320,0.5036675,95521.0,95520.0,0.2637097]
[1746358336020,0.5036675,95521.0,95520.0,0.3310097]
[1746358336518,0.4936675,95521.0,95520.0,0.3410097]
[1746358336722,0.5536675,95521.0,95520.0,0.3310097]
[1746358339424,0.5336675,95521.0,95520.0,0.3310097]
[1746358339715,0.5336675,95521.0,95520.0,0.4003097]
[1746358340317,0.3836675,95521.0,95520.0,0.4703097]
[1746358340624,0.3836675,95521.0,95520.0,0.4003097]
[1746358344928,0.36839877,95531.0,95530.0,0.2093478]
[1746358345129,0.38839877,95531.0,95530.0,0.2093478]
[1746358346328,0.38939877,95531.0,95530.0,0.3424478]
[1746358347431,0.3490867,95531.0,95530.0,0.3424478]
[1746358349232,0.3490867,95531.0,95530.0,0.3947778]
[1746358357036,0.3490867,95531.0,95530.0,0.4047778]
[1746358357236,0.3490867,95531.0,95530.0,0.3947778]
[1746358357637,0.3490867,95531.0,95530.0,0.11633]
[1746358357837,0.3490867,95531.0,95530.0,0.3256778]
[1746358363139,0.3490867,95531.0,95530.0,0.2616778]
[1746358365243,0.3290867,95531.0,95530.0,0.2616778]
[1746358369946,0.3290867,95531.0,95530.0,0.3242778]
[1746358377848,0.3290867,95531.0,95530.0,0.11493]
[1746358378145,0.3590867,95531.0,95530.0,0.05233]
[1746358379249,0.3590867,95531.0,95530.0,0.2616778]
[1746358381150,0.3590867,95531.0,95530.0,0.05233]
[1746358382241,0.3590867,95531.0,95530.0,0.2616778]
[1746358383952,0.3390867,95531.0,95530.0,0.2616778]
[1746358385549,0.3290867,95531.0,95530.0,0.2616778]
[1746358387843,0.27675,95531.0,95530.0,0.2616778]
[1746358388154,0.27675,95531.0,95530.0,0.3860778]
[1746358398747,0.0674,95531.0,95530.0,0.3860778]
[1746358399056,0.1374,95531.0,95530.0,0.2616778]
[1746358399257,0.3267456,95531.0,95530.0,0.05233]
[1746358399457,0.3367456,95531.0,95530.0,0.05233]
[1746358401157,0.3367456,95531.0,95514.0,0.1174455]
[1746358401158,0.2093741,95518.0,95517.0,0.16003012]
[1746358401348,0.4393741,95518.0,95517.0,0.16003012]
[1746358402057,0.4393741,95518.0,95517.0,0.36940642]
[1746358402247,0.5679741,95518.0,95517.0,0.36940642]
[1746358402658,0.5679741,95518.0,95517.0,0.2113763]
[1746358403051,0.5679741,95518.0,95517.0,0.2123763]
[1746358403655,0.5179741,95518.0,95517.0,0.2123763]
[1746358407859,0.3579741,95518.0,95517.0,0.2123763]
[1746358408956,0.3579741,95518.0,95517.0,0.003]
[1746358410658,0.3579741,95518.0,95517.0,0.2123763]
[1746358419166,0.3579741,95518.0,95517.0,0.003]
[1746358420676,0.3579741,95518.0,95517.0,0.2123763]
[1746358427580,0.3379741,95518.0,95517.0,0.2123763]
[1746358428975,0.3379741,95518.0,95517.0,0.003]
[1746358429481,0.3379741,95518.0,95517.0,0.2123763]
[1746358434176,0.3379741,95518.0,95517.0,0.2770763]
[1746358439888,0.3779741,95518.0,95517.0,0.2770763]
[1746358448894,0.3379741,95518.0,95517.0,0.2770763]
[1746358459000,0.3379741,95518.0,95517.0,0.3294163]
[1746358469399,0.3379741,95518.0,95517.0,0.11704]
[1746358469601,0.3379741,95518.0,95517.0,0.3264163]
[1746358470911,0.3379741,95518.0,95517.0,0.12704]
[1746358471100,0.3379741,95518.0,95517.0,0.11704]
[1746358471301,0.4479741,95518.0,95517.0,0.11704]
[1746358471711,0.4479741,95518.0,95517.0,0.05234]
[1746358473311,0.7979741,95518.0,95517.0,0.05234]
[1746358473503,0.4479741,95518.0,95517.0,0.05234]
[1746358490026,0.5120741,95518.0,95517.0,0.05234]
[1746358491626,0.4720741,95518.0,95517.0,0.05234]
[1746358491929,0.4020741,95518.0,95517.0,0.05234]
[1746358492226,0.4020741,95518.0,95517.0,0.2617163]
[1746358493930,0.4020741,95518.0,95517.0,0.05234]
[1746358514143,0.7628741,95518.0,95517.0,0.05234]
[1746358516132,0.4020741,95518.0,95517.0,0.05234]
[1746358516341,0.7628741,95518.0,95517.0,0.05234]
[1746358517949,0.4020741,95518.0,95517.0,0.05234]
[1746358518148,0.7628741,95518.0,95517.0,0.05234]
[1746358518951,0.4120741,95518.0,95517.0,0.05234]
[1746358519150,0.7728741,95518.0,95517.0,0.05234]
[1746358522848,0.8128741,95518.0,95517.0,0.05234]
[1746358524152,0.4520741,95518.0,95517.0,0.05234]
[1746358524354,0.8128741,95518.0,95517.0,0.05234]
[1746358525746,0.4520741,95518.0,95517.0,0.05234]
[1746358525946,0.8128741,95518.0,95517.0,0.05234]
[1746358526457,0.2094092,95502.0,95498.0,0.0636]
[1746358526650,0.2194092,95502.0,95498.0,0.3396174]
[1746358526847,0.2194092,95502.0,95501.0,0.15999569]
[1746358527156,0.2394092,95502.0,95501.0,0.15999569]
[1746358527359,0.3048092,95502.0,95501.0,0.15999569]
[1746358527557,0.3708092,95502.0,95498.0,0.0636]
[1746358527761,0.2004158,95499.0,95498.0,0.04115109]
[1746358527963,0.2904158,95499.0,95498.0,0.04115109]
[1746358528460,0.2904158,95499.0,95498.0,0.25056899]
[1746358528662,0.2624158,95499.0,95498.0,0.31616899]
[1746358528851,0.2624158,95499.0,95498.0,0.32116899]
[1746358529859,0.2624158,95499.0,95498.0,0.32516899]
[1746358531759,0.3608,95531.0,95498.0,0.529312]
[1746358531954,0.0643,95522.0,95512.0,0.5701873]
[1746358532263,0.2093773,95517.0,95512.0,0.5701873]
[1746358532661,0.01166452,95519.0,95512.0,0.5701873]
[1746358532962,0.28935633,95513.0,95512.0,0.6364873]
[1746358533164,0.29935633,95513.0,95512.0,0.7033873]
[1746358533863,0.42755633,95513.0,95512.0,0.7033873]
[1746358534260,0.42755633,95513.0,95512.0,0.6370873]
[1746358534261,0.3475851,95513.0,95512.0,0.6370873]
[1746358534461,0.7083851,95513.0,95512.0,0.001]
[1746358534661,1.0983851,95513.0,95512.0,0.002]
[1746358534873,0.2094114,95501.0,95500.0,0.0619]
[1746358535058,0.2094136,95500.0,95497.0,0.00157071]
[1746358535259,0.4372136,95500.0,95497.0,0.00157071]
[1746358535659,0.4372136,95500.0,95499.0,0.0636]
[1746358536170,0.4342136,95500.0,95499.0,0.0636]
[1746358537071,0.4342136,95500.0,95499.0,0.0666]
[1746358537569,0.4342136,95500.0,95499.0,0.0696]
[1746358538168,0.4342136,95500.0,95499.0,0.2790158]
[1746358542272,0.4342136,95500.0,95499.0,0.006]
[1746358544267,0.4342136,95500.0,95499.0,0.2154158]
[1746358545970,0.9189256,95500.0,95496.0,0.05235]
[1746358546173,0.2094684,95475.0,95452.0,0.0523794]
[1746358546375,0.9810684,95475.0,95455.0,0.1236]
[1746358546673,0.5702684,95475.0,95466.0,0.0604]
[1746358546864,0.0633,95478.0,95477.0,0.209464]
[1746358547068,0.2094569,95481.0,95480.0,0.2094574]
[1746358547277,0.261815,95485.0,95484.0,0.2094415]
[1746358547474,0.258815,95485.0,95484.0,0.2094415]
[1746358547677,0.255815,95485.0,95484.0,0.2094415]
[1746358547876,0.255815,95485.0,95484.0,0.3594415]
[1746358548079,0.255815,95485.0,95484.0,0.4774415]
[1746358548380,0.255815,95485.0,95484.0,0.3274415]
[1746358548580,0.255815,95485.0,95484.0,0.4274415]
[1746358548878,0.255815,95485.0,95484.0,0.3334415]
[1746358549581,0.255815,95485.0,95484.0,0.5834415]
[1746358549968,0.255815,95485.0,95484.0,0.3334415]
[1746358550174,0.255815,95485.0,95484.0,0.4669415]
[1746358551381,0.255815,95485.0,95484.0,0.6169415]
[1746358551582,0.255815,95485.0,95484.0,0.4669415]
[1746358551777,0.255815,95485.0,95484.0,0.5669415]
[1746358552377,0.275815,95485.0,95484.0,0.5769415]
[1746358552577,0.275815,95485.0,95484.0,0.6169415]
[1746358552778,0.275815,95485.0,95484.0,0.7669415]
[1746358552978,0.275815,95485.0,95484.0,0.4669415]
[1746358553786,0.275815,95485.0,95484.0,0.5669415]
[1746358553973,0.275815,95485.0,95484.0,0.6169415]
[1746358554179,0.275815,95485.0,95484.0,0.4669487]
[1746358555084,0.275815,95485.0,95484.0,0.6169487]
[1746358555279,0.275815,95485.0,95484.0,0.5769487]
[1746358555483,0.275815,95485.0,95484.0,0.4669487]
[1746358556477,0.2294533,95485.0,95484.0,0.4669487]
[1746358558584,0.02,95485.0,95484.0,0.7169487]
[1746358558785,0.061,95486.0,95485.0,0.2094465]
[1746358558985,0.061,95486.0,95485.0,0.3674465]
[1746358559187,0.061,95486.0,95485.0,0.4854465]
[1746358559683,0.061,95486.0,95485.0,0.6354465]
[1746358559886,0.3608,95501.0,95499.0,0.2094158]
[1746358560192,0.3608,95501.0,95495.0,0.2094239]
[1746358560193,0.2094256,95496.0,95495.0,0.2094239]
[1746358560582,0.2094256,95496.0,95495.0,0.3094239]
[1746358560782,0.2094256,95496.0,95495.0,0.2706239]
[1746358560982,0.2757256,95496.0,95495.0,0.2706239]
[1746358561182,0.3367256,95496.0,95495.0,0.3343239]
[1746358561382,0.3367256,95496.0,95495.0,0.4463239]
[1746358561581,0.3367256,95496.0,95495.0,0.7130239]
[1746358561582,0.1273,95496.0,95495.0,0.7130239]
[1746358561787,0.1263,95496.0,95495.0,0.4030239]
[1746358562491,0.1263,95496.0,95495.0,0.4050239]
[1746358562689,0.3357223,95496.0,95495.0,0.5550239]
[1746358562990,0.3357223,95496.0,95495.0,0.4050239]
[1746358563390,0.5557223,95496.0,95495.0,0.4950239]
[1746358563577,0.5557223,95496.0,95495.0,0.4050239]
[1746358563989,0.5557223,95496.0,95495.0,0.4950239]
[1746358564585,0.3463,95496.0,95495.0,0.4950239]
[1746358564891,0.22,95496.0,95495.0,0.4950239]
[1746358565087,0.0658,95499.0,95498.0,0.2094179]
[1746358565288,0.1158,95499.0,95498.0,0.2394179]
[1746358565790,0.1158,95499.0,95498.0,0.3002179]
[1746358566983,0.1158,95499.0,95498.0,0.3022179]
[1746358567493,0.1158,95499.0,95498.0,0.4522179]
[1746358567888,0.3252158,95499.0,95498.0,0.3822179]
[1746358568600,0.3252158,95499.0,95498.0,0.3022179]
[1746358569988,0.3252158,95499.0,95498.0,0.4522179]
[1746358570189,0.3252158,95499.0,95498.0,0.3022179]
[1746358571596,0.1158,95499.0,95498.0,0.4522179]
[1746358571989,0.0658,95499.0,95498.0,0.3222179]
[1746358572192,0.0658,95499.0,95498.0,0.4722179]
[1746358572393,0.0658,95499.0,95498.0,0.3222179]
[1746358573698,0.0658,95499.0,95498.0,0.3830179]
[1746358574492,0.0658,95499.0,95498.0,0.5330179]
[1746358580295,0.0658,95499.0,95498.0,0.3830179]
[1746358580492,0.0658,95499.0,95498.0,0.5330179]
[1746358580694,0.3608,95516.0,95498.0,0.719112]
[1746358580894,0.0635,95515.0,95514.0,0.2093807]
[1746358581094,0.3435,95515.0,95514.0,0.3693807]
[1746358581293,0.3435,95515.0,95514.0,0.3393807]
[1746358581500,0.3435,95515.0,95514.0,0.2093807]
[1746358581701,0.6052347,95515.0,95514.0,0.2093807]
[1746358581900,0.5528895,95515.0,95514.0,0.3093807]
[1746358582101,0.28,95515.0,95514.0,0.3893807]
[1746358582300,0.07998381,95519.0,95518.0,0.2093741]
[1746358582499,0.21998381,95519.0,95518.0,0.2393741]
[1746358582799,0.08998381,95519.0,95518.0,0.2393741]
[1746358583306,0.08998381,95519.0,95518.0,0.3042741]
[1746358583611,0.07998381,95519.0,95518.0,0.8150741]
[1746358583995,0.07998381,95519.0,95518.0,0.6650741]
[1746358584195,0.08698381,95519.0,95518.0,0.8150741]
[1746358584394,0.08698381,95519.0,95518.0,0.6650741]
[1746358585698,0.08698381,95519.0,95518.0,0.8550741]
[1746358586502,0.007,95519.0,95518.0,0.8550741]
[1746358587807,0.007,95519.0,95518.0,0.7750741]
[1746358588010,0.0649,95523.0,95522.0,0.2093653]
[1746358588207,0.0649,95523.0,95522.0,0.5630053]
[1746358589407,0.0669,95523.0,95522.0,0.5730053]
[1746358589796,0.0669,95523.0,95522.0,0.5130053]
[1746358590308,0.0669,95523.0,95522.0,0.4230053]
[1746358590502,0.0669,95523.0,95522.0,0.5730053]
[1746358590702,0.0699,95523.0,95522.0,0.4230053]
[1746358591006,0.2093785,95516.0,95508.0,0.3608]
[1746358591205,0.4093785,95516.0,95515.0,0.40791832]
[1746358591507,0.7893785,95516.0,95515.0,0.34427832]
[1746358592009,0.7893785,95516.0,95515.0,0.29437832]
[1746358592212,0.8207785,95516.0,95515.0,0.29437832]
[1746358592510,0.8217785,95516.0,95515.0,0.29437832]
[1746358593502,0.2094048,95504.0,95503.0,0.2094063]
[1746358593701,0.5094048,95504.0,95503.0,0.2094063]
[1746358594104,0.5094048,95504.0,95503.0,0.15]
[1746358594298,0.209407,95503.0,95502.0,0.2730492]
[1746358594506,0.478407,95503.0,95502.0,0.4230492]
[1746358594702,0.542707,95503.0,95502.0,0.2730492]
[1746358594908,0.542707,95503.0,95502.0,0.5330492]
[1746358595109,0.575607,95503.0,95502.0,0.2730492]
[1746358595311,0.575607,95503.0,95502.0,0.2740492]
[1746358595708,0.575607,95503.0,95502.0,0.06464]
[1746358595709,0.573607,95503.0,95502.0,0.06464]
[1746358596213,0.573607,95503.0,95502.0,0.06664]
[1746358597410,0.573607,95503.0,95502.0,0.2760492]
[1746358597915,0.573607,95503.0,95502.0,0.06664]
[1746358598520,0.573607,95503.0,95502.0,0.21664]
[1746358598815,0.573607,95503.0,95502.0,0.06664]
[1746358600013,0.573607,95503.0,95502.0,0.32664]
[1746358600316,0.573607,95503.0,95502.0,0.06664]
[1746358601406,0.573607,95503.0,95502.0,0.16664]
[1746358601611,1.114407,95503.0,95502.0,0.113]
[1746358601810,1.114407,95503.0,95502.0,0.003]
[1746358602516,1.114407,95503.0,95502.0,0.253]
[1746358602725,1.434407,95503.0,95502.0,0.143]
[1746358602920,1.434407,95503.0,95502.0,0.003]
[1746358604110,1.484207,95503.0,95502.0,0.003]
[1746358604316,1.484107,95503.0,95502.0,0.003]
[1746358605517,1.484107,95503.0,95502.0,0.093]
[1746358605718,1.484107,95503.0,95502.0,0.003]
[1746358606015,0.2618046,95488.0,95487.0,0.2094418]
[1746358606227,0.4918046,95488.0,95487.0,0.2094418]
[1746358606625,0.5547046,95488.0,95487.0,0.2094418]
[1746358607229,0.5547046,95488.0,95487.0,0.2134418]
[1746358607637,0.5547046,95488.0,95487.0,0.004]
[1746358607834,0.5547046,95488.0,95487.0,0.2174421]
[1746358609040,0.5547046,95488.0,95487.0,0.2316421]
[1746358609831,0.5547046,95488.0,95487.0,0.2625421]
[1746358611334,0.5547046,95488.0,95487.0,0.2940421]
[1746358613830,0.20269099,95488.0,95487.0,0.7795661]
[1746358614144,0.2093964,95509.0,95508.0,0.2093938]
[1746358614330,0.3793964,95509.0,95508.0,0.2617423]
[1746358614528,0.3793964,95509.0,95508.0,0.2093938]
[1746358615435,0.2093964,95509.0,95508.0,0.2724938]
[1746358616140,0.2103964,95509.0,95508.0,0.2724938]
[1746358616336,0.2113964,95509.0,95508.0,0.2724938]
[1746358617037,0.2513964,95509.0,95508.0,0.2724938]
[1746358619680,0.042,95509.0,95508.0,0.2724938]
[1746358625280,0.0738,95509.0,95508.0,0.2724938]
[1746358626480,0.2831938,95509.0,95508.0,0.2724938]
[1746358627472,0.2431938,95509.0,95508.0,0.2724938]
[1746358633286,0.2431938,95509.0,95508.0,0.0631]
[1746358633676,0.2431938,95509.0,95508.0,0.2724922]
[1746358634881,0.0338,95509.0,95508.0,0.2724922]
[1746358635775,0.2431938,95509.0,95508.0,0.0631]
[1746358635975,0.3831938,95509.0,95508.0,0.032]
[1746358636184,0.3231938,95509.0,95508.0,0.032]
[1746358637479,0.2094114,95502.0,95501.0,0.2094079]
[1746358637682,0.2094114,95502.0,95501.0,0.4440606]
[1746358637876,0.2694114,95502.0,95501.0,0.15]
[1746358638074,0.2094158,95499.0,95498.0,0.06364]
[1746358638283,0.2094179,95498.0,95497.0,0.29437832]
[1746358638474,0.6008179,95498.0,95497.0,0.29437832]
[1746358638676,0.5998179,95498.0,95497.0,0.50379842]
[1746358638976,0.5988179,95498.0,95497.0,0.54992842]
[1746358639181,0.5988179,95498.0,95497.0,0.34050832]
[1746358639570,0.5988179,95498.0,95497.0,0.34250832]
[1746358640069,0.5988179,95498.0,95497.0,0.34350832]
[1746358640260,0.5988179,95498.0,95497.0,0.37570832]
[1746358641361,0.5988179,95498.0,95497.0,0.58512842]
[1746358643262,0.5988179,95498.0,95497.0,0.2907501]
[1746358645354,0.5788179,95498.0,95497.0,0.2907501]
[1746358646455,0.5788179,95498.0,95497.0,0.08133]
[1746358647662,0.5788179,95498.0,95497.0,0.04913]
[1746358649862,0.5788179,95498.0,95497.0,0.2585501]
[1746358650664,0.5788179,95498.0,95497.0,0.04913]
[1746358651967,0.5788179,95498.0,95497.0,0.2886501]
[1746358653869,0.5788179,95498.0,95497.0,0.07923]
[1746358654475,0.5788179,95498.0,95497.0,0.2886501]
[1746358655770,0.6088179,95498.0,95497.0,0.2886501]
[1746358657373,0.6088179,95498.0,95497.0,0.07923]
[1746358657669,0.6088179,95498.0,95497.0,0.2886501]
[1746358659068,0.6088179,95498.0,95497.0,0.07923]
[1746358660565,0.6088179,95498.0,95497.0,0.2886501]
[1746358662382,0.6410179,95498.0,95497.0,0.2886501]
[1746358666778,0.6110179,95498.0,95497.0,0.2886501]
[1746358667678,0.4510179,95498.0,95497.0,0.07923]
[1746358668177,0.4510179,95498.0,95497.0,0.11123]
[1746358668579,0.4510179,95498.0,95497.0,0.3206501]
[1746358671583,0.4198179,95498.0,95497.0,0.3206501]
[1746358671885,0.5702126,95501.0,95500.0,0.2094136]
[1746358672075,0.3708,95501.0,95500.0,0.4594136]
[1746358672276,0.3608,95501.0,95500.0,0.4741256]
[1746358673080,0.3608,95501.0,95500.0,0.5551256]
[1746358673283,0.3608,95501.0,95500.0,1.9751256]
[1746358673481,0.5702114,95501.0,95500.0,1.9751256]
[1746358673784,0.2094114,95501.0,95500.0,2.3359256]
[1746358675784,0.2094036,95505.0,95504.0,0.2617512]
[1746358675986,0.0523475,95511.0,95505.0,0.2094004]
[1746358675987,0.2094012,95506.0,95505.0,0.2094004]
[1746358676289,0.2093953,95509.0,95508.0,0.2617402]
[1746358676580,0.2193953,95509.0,95508.0,0.4623402]
[1746358677181,0.2193953,95509.0,95508.0,0.5146902]
[1746358677584,0.2093953,95509.0,95508.0,0.5346902]
[1746358677779,0.2093953,95509.0,95508.0,0.4823416]
[1746358678087,0.2193953,95509.0,95508.0,0.4623416]
[1746358678689,0.2203953,95509.0,95508.0,0.4623416]
[1746358678882,0.2403953,95509.0,95508.0,0.3223416]
[1746358679195,0.2203953,95509.0,95508.0,0.3223416]
[1746358679405,0.2213953,95509.0,95508.0,0.3223416]
[1746358682192,0.6913953,95509.0,95508.0,0.3223416]
[1746358682384,0.4941953,95509.0,95508.0,0.3223416]
[1746358687694,0.4941953,95509.0,95508.0,0.11295]
[1746358687894,0.5141953,95509.0,95508.0,0.11295]
[1746358688296,0.5141953,95509.0,95508.0,0.08295]
[1746358688491,0.5141953,95509.0,95508.0,0.05235]
[1746358688492,0.6249953,95509.0,95508.0,0.05235]
[1746358689597,0.6649953,95509.0,95508.0,0.05235]
[1746358695708,1.2149953,95509.0,95508.0,0.05235]
[1746358696801,0.2094245,95495.0,95494.0,0.06392]
[1746358697011,0.2194245,95495.0,95494.0,0.22392]
[1746358697211,0.2194245,95495.0,95494.0,0.4333467]
[1746358697710,0.2819245,95495.0,95494.0,0.4333467]
[1746358698010,0.29308593,95495.0,95494.0,0.06392]
[1746358698212,0.29308593,95495.0,95494.0,0.06592]
[1746358698505,0.29308593,95495.0,95494.0,0.06792]
[1746358698706,0.2819245,95495.0,95494.0,0.06792]
[1746358702507,0.29290741,95495.0,95494.0,0.06792]
[1746358703218,0.2819245,95495.0,95494.0,0.06792]
[1746358705708,0.2819245,95495.0,95494.0,0.09892]
[1746358708907,0.3019245,95495.0,95494.0,0.09892]
[1746358709311,0.2819245,95495.0,95494.0,0.09892]
[1746358711321,0.2919245,95495.0,95494.0,0.09892]
[1746358726937,0.2919245,95495.0,95494.0,0.13192]
[1746358729548,0.2919245,95495.0,95494.0,0.035]
[1746358735256,0.2919245,95495.0,95494.0,0.0677]
[1746358742664,0.2613245,95495.0,95494.0,0.0677]
[1746358745366,0.2613245,95495.0,95494.0,0.12005]
[1746358750760,0.2933245,95495.0,95494.0,0.12005]
[1746358752870,0.2933245,95495.0,95494.0,0.05635]
[1746358757573,0.3980445,95495.0,95494.0,0.05635]
[1746358757776,0.9980445,95495.0,95494.0,0.05635]
[1746358760173,1.7196445,95495.0,95494.0,0.05635]
[1746358761265,1.6149245,95495.0,95494.0,0.05635]
[1746358763577,0.2094487,95484.0,95483.0,0.00157114]
[1746358763778,1.3002487,95484.0,95483.0,0.00157114]
[1746358764463,1.3633487,95484.0,95483.0,0.00157114]
[1746358764862,1.4633487,95484.0,95483.0,0.00157114]
[1746358765270,1.4633487,95484.0,95483.0,0.00557114]
[1746358765876,1.4633487,95484.0,95483.0,0.00957114]
[1746358766377,1.4633487,95484.0,95483.0,4e-08]
[1746358766677,0.2094508,95483.0,95482.0,1e-08]
[1746358766878,1.1931508,95483.0,95482.0,1e-08]
[1746358767176,1.2570508,95483.0,95482.0,1e-08]
[1746358767374,1.2933508,95483.0,95482.0,1e-08]
[1746358767576,1.2456508,95483.0,95482.0,1e-08]
[1746358767777,1.2933508,95483.0,95482.0,1e-08]
[1746358767978,1.2512508,95483.0,95482.0,1e-08]
[1746358768379,1.2512508,95483.0,95482.0,0.00200001]
[1746358768981,1.2522508,95483.0,95482.0,0.00500001]
[1746358769181,1.2943508,95483.0,95482.0,0.00500001]
[1746358769484,1.2522508,95483.0,95482.0,0.00500001]
[1746358769682,1.2943508,95483.0,95482.0,0.00500001]
[1746358770274,1.2522508,95483.0,95482.0,0.00500001]
[1746358770777,1.2943508,95483.0,95482.0,0.00500001]
[1746358771184,1.2522508,95483.0,95482.0,0.00500001]
[1746358771674,1.1999508,95483.0,95482.0,0.00500001]
[1746358771874,1.2943508,95483.0,95482.0,0.00500001]
[1746358772075,0.9843508,95483.0,95482.0,0.00500001]
[1746358772381,0.9366508,95483.0,95482.0,0.00500001]
[1746358773085,0.9843508,95483.0,95482.0,0.00500001]
[1746358773388,0.9366508,95483.0,95482.0,0.00500001]
[1746358775384,0.9843508,95483.0,95482.0,0.00500001]
[1746358776385,0.9324508,95483.0,95482.0,0.00500001]
[1746358778881,0.9324508,95483.0,95482.0,0.03830001]
[1746358779184,0.9324508,95483.0,95482.0,0.06900001]
[1746358781180,0.9366508,95483.0,95482.0,0.06900001]
[1746358781387,0.8843508,95483.0,95482.0,0.06900001]
[1746358781786,0.9366508,95483.0,95482.0,0.06900001]
[1746358782091,0.9324508,95483.0,95482.0,0.06900001]
[1746358785490,0.9366508,95483.0,95482.0,0.06900001]
[1746358785682,0.8843508,95483.0,95482.0,0.06900001]
[1746358786387,0.9366508,95483.0,95482.0,0.06900001]
[1746358787787,0.8891508,95483.0,95482.0,0.06900001]
[1746358787989,0.9366508,95483.0,95482.0,0.06900001]
[1746358788483,0.9843508,95483.0,95482.0,0.06900001]
[1746358788888,0.8843508,95483.0,95482.0,0.06900001]
[1746358789086,0.9843508,95483.0,95482.0,0.06900001]
[1746358789389,0.9366508,95483.0,95482.0,0.06900001]
[1746358789579,0.9843508,95483.0,95482.0,0.06900001]
[1746358789780,0.2094838,95468.0,95467.0,0.00246037]
[1746358789979,0.2494838,95468.0,95467.0,0.00246037]
[1746358790185,0.2494838,95468.0,95467.0,0.12046037]
[1746358791088,0.2504838,95468.0,95467.0,0.12646037]
[1746358791588,0.2514838,95468.0,95467.0,0.13146037]
[1746358792483,0.2614838,95468.0,95467.0,0.13146037]
[1746358793294,0.2614838,95468.0,95467.0,0.19516037]
[1746358795294,0.2614838,95468.0,95467.0,0.1927]
[1746358796892,0.27262428,95468.0,95467.0,0.1927]
[1746358807302,0.30462428,95468.0,95467.0,0.1927]
[1746358809698,0.30462428,95468.0,95467.0,0.1596]
[1746358810298,1.55542428,95468.0,95467.0,0.1009998]
[1746358810503,1.50772428,95468.0,95467.0,0.1009998]
[1746358810692,1.50772428,95468.0,95467.0,0.1109998]
[1746358810693,0.82542428,95468.0,95467.0,0.1109998]
[1746358810898,0.82542428,95468.0,95467.0,0.1009998]
[1746358811402,0.79342428,95468.0,95467.0,0.1648998]
[1746358812808,0.82652428,95468.0,95467.0,0.1648998]
[1746358813108,0.46572428,95468.0,95467.0,0.1648998]
[1746358819610,0.4545838,95468.0,95467.0,0.1648998]
[1746358822214,0.46581647,95468.0,95467.0,0.1648998]
[1746358822614,0.4214838,95468.0,95467.0,0.1648998]
[1746358822913,0.08002492,95483.0,95481.0,0.209453]
[1746358823208,0.28947572,95483.0,95482.0,0.0941]
[1746358823412,0.28947572,95483.0,95482.0,0.064]
[1746358823608,0.32237572,95483.0,95482.0,0.064]
[1746358824208,0.32237572,95483.0,95482.0,0.1502]
[1746358825015,0.32237572,95483.0,95482.0,0.1542]
[1746358826215,0.39237572,95483.0,95482.0,0.122]
[1746358829926,0.39237572,95483.0,95482.0,0.12535]
[1746358834530,0.3123508,95483.0,95482.0,0.12535]
[1746358835621,0.3430508,95483.0,95482.0,0.12535]